fUSD/lending_fUSD_20250115
["ID","MTS","AMOUNT","RATE_DAILY","PERIOD"]
[348993210,1736925043490,-500.0,0.00013154,2]
[348993211,1736925043501,-500.0,0.00013154,2]
[348993212,1736925043512,-500.0,0.00013154,2]
[348993213,1736925043524,-500.0,0.00013154,2]
[348993214,1736925043536,-500.0,0.00013154,2]
[348993215,1736925043547,-500.0,0.00013154,2]
[348993216,1736925043559,-500.0,0.00013154,2]
[348993217,1736925043570,-500.0,0.00013154,2]
[348993218,1736925043581,-500.0,0.00013154,2]
[348993219,1736925043593,-500.0,0.00013154,2]
[348993221,1736925043605,-500.0,0.00013154,2]
[348993225,1736925043617,-500.0,0.00013154,2]
[348993228,1736925043628,-500.0,0.00013154,2]
[348993231,1736925043639,-500.0,0.00013154,2]
[348993234,1736925043650,-500.0,0.00013154,2]
[348993238,1736925043661,-500.0,0.00013154,2]
[348993241,1736925043672,-500.0,0.00013154,2]
[348993243,1736925043682,-500.0,0.00013154,2]
[348993245,1736925043693,-500.0,0.00013154,2]
[348993247,1736925043707,-500.0,0.00013154,2]
[348993248,1736925043718,-500.0,0.00013154,2]
[348993249,1736925043729,-500.0,0.00013154,2]
[348993250,1736925043740,-500.0,0.00013154,2]
[348993251,1736925043751,-500.0,0.00013154,2]
[348993252,1736925043763,-500.0,0.00013154,2]
[348993253,1736925043774,-500.0,0.00013154,2]
[348993254,1736925043786,-500.0,0.00013154,2]
[348993255,1736925043798,-500.0,0.00013154,2]
[348993256,1736925043808,-500.0,0.00013154,2]
[348993257,1736925043820,-500.0,0.00013154,2]
[348993258,1736925043832,-506.8748005,0.00013154,2]
[348993259,1736925043843,-500.0,0.00013154,2]
[348993260,1736925043855,-500.0,0.00013154,2]
[348993261,1736925043867,-500.0,0.00013154,2]
[348993262,1736925043880,-500.0,0.00013154,2]
[348993263,1736925043891,-286.17479129,0.00013154,2]
[348993264,1736925043902,-500.0,0.00013154,2]
[348993265,1736925043914,-500.0,0.00013154,2]
[348993266,1736925043926,-515.44936006,0.00013155,2]
[348993267,1736925043940,-500.0,0.00013155,2]
[348993268,1736925043950,-246.18119282,0.00013155,2]
[348993269,1736925043960,-500.0,0.00013155,2]
[348993270,1736925043971,-500.0,0.00013155,2]
[348993271,1736925043981,-500.0,0.00013155,2]
[348993272,1736925043991,-500.0,0.00013155,2]
[348993273,1736925044001,-500.0,0.00013155,2]
[348993274,1736925044012,-500.0,0.00013155,2]
[348993275,1736925044026,-500.0,0.00013155,2]
[348993276,1736925044038,-500.0,0.00013155,2]
[348993277,1736925044050,-150.90314075,0.00013155,2]
[348993278,1736925044061,-500.0,0.00013155,2]
[348993279,1736925044073,-500.0,0.00013155,2]
[348993280,1736925044083,-500.0,0.00013155,2]
[348993281,1736925044093,-639.59158107,0.00013155,2]
[348993282,1736925044103,-500.0,0.00013155,2]
[348993283,1736925044113,-505.33804204,0.00013155,2]
[348993284,1736925044124,-500.0,0.00013155,2]
[348993285,1736925044138,-500.0,0.00013155,2]
[348993286,1736925044149,-500.0,0.00013155,2]
[348993287,1736925044160,-500.0,0.00013155,2]
[348993288,1736925044172,-500.0,0.00013155,2]
[348993289,1736925044184,-502.22732879,0.00013155,2]
[348993290,1736925044197,-234.15849769,0.00013155,2]
[348993291,1736925044208,-578.83,0.00013155,2]
[348993292,1736925044219,-500.0,0.00013155,2]
[348993293,1736925044230,-207.71,0.00013155,2]
[348993294,1736925044240,-500.0,0.00013155,2]
[348993295,1736925044250,-500.0,0.00013155,2]
[348993296,1736925044263,-500.0,0.00013155,2]
[348993297,1736925044274,-500.0,0.00013155,2]
[348993298,1736925044285,-500.0,0.00013155,2]
[348993299,1736925044295,-500.0,0.00013155,2]
[348993300,1736925044306,-500.0,0.00013155,2]
[348993301,1736925044319,-500.0,0.00013155,2]
[348993302,1736925044329,-500.0,0.00013155,2]
[348993303,1736925044340,-500.0,0.00013155,2]
[348993304,1736925044354,-500.0,0.00013155,2]
[348993305,1736925044364,-500.0,0.00013155,2]
[348993306,1736925044376,-500.0,0.00013155,2]
[348993307,1736925044387,-500.0,0.00013155,2]
[348993308,1736925044399,-515.12608235,0.00013155,2]
[348993309,1736925044409,-500.0,0.00013155,2]
[348993310,1736925044419,-500.0,0.00013155,2]
[348993311,1736925044431,-500.0,0.00013155,2]
[348993312,1736925044444,-500.0,0.00013155,2]
[348993313,1736925044455,-500.0,0.00013155,2]
[348993314,1736925044466,-500.0,0.00013155,2]
[348993315,1736925044477,-500.0,0.00013155,2]
[348993316,1736925044488,-500.0,0.00013155,2]
[348993317,1736925044499,-500.0,0.00013155,2]
[348993318,1736925044509,-500.0,0.00013155,2]
[348993319,1736925044520,-500.0,0.00013155,2]
[348993320,1736925044532,-500.0,0.00013155,2]
[348993321,1736925044546,-500.0,0.00013155,2]
[348993322,1736925044557,-500.0,0.00013155,2]
[348993323,1736925044567,-500.0,0.00013155,2]
[348993324,1736925044578,-507.43557906,0.00013155,2]
[348993325,1736925044590,-511.242651,0.00013155,2]
[348993326,1736925044602,-500.0,0.00013155,2]
[348993327,1736925044613,-500.0,0.00013155,2]
[348993328,1736925044624,-500.0,0.00013155,2]
[348993329,1736925044636,-500.0,0.00013155,2]
[348993330,1736925044646,-362.83,0.00013155,2]
[348993331,1736925044657,-500.0,0.00013155,2]
[348993332,1736925044670,-500.0,0.00013155,2]
[348993333,1736925044681,-500.0,0.00013155,2]
[348993334,1736925044691,-504.97123509,0.0001316,2]
[348993335,1736925044702,-500.0,0.0001316,2]
[348993336,1736925044713,-500.0,0.0001316,2]
[348993337,1736925044723,-500.0,0.0001316,2]
[348993338,1736925044737,-500.0,0.0001316,2]
[348993339,1736925044747,-500.0,0.0001316,2]
[348993340,1736925044758,-631.88,0.0001316,2]
[348993341,1736925044768,-500.0,0.0001316,2]
[348993342,1736925044779,-500.0,0.0001316,2]
[348993343,1736925044789,-502.21994434,0.0001316,2]
[348993344,1736925044800,-500.0,0.0001316,2]
[348993345,1736925044812,-500.0,0.0001316,2]
[348993346,1736925044823,-500.0,0.00013161,2]
[348993347,1736925044833,-500.0,0.00013161,2]
[348993348,1736925044844,-496.23726964,0.00013161,2]
[348993349,1736925044855,-506.36543386,0.00013161,2]
[348993350,1736925044867,-49.39322438,0.00013161,2]
[348993351,1736925044885,-450.60677562,0.00013161,2]
[348993352,1736925044898,-458.14512055,0.00013161,2]
[348993353,1736925044912,-45.4661435,0.00013161,2]
[348993354,1736925044925,-504.08701517,0.00013161,2]
[348993355,1736925044939,-500.0,0.00013161,2]
[348993356,1736925044952,-500.0,0.00013161,2]
[348993357,1736925044963,-501.2975234,0.00013161,2]
[348993358,1736925044976,-504.73186092,0.00013161,2]
[348993359,1736925044989,-505.5977159,0.00013161,2]
[348993360,1736925045001,-500.0,0.00013161,2]
[348993361,1736925045011,-505.50644643,0.00013161,2]
[348993362,1736925045022,-500.0,0.00013161,2]
[348993363,1736925045032,-500.0,0.00013161,2]
[348993364,1736925045044,-500.0,0.00013161,2]
[348993365,1736925045056,-500.0,0.00013161,2]
[348993366,1736925045066,-500.0,0.00013161,2]
[348993367,1736925045078,-500.0,0.00013161,2]
[348993368,1736925045089,-500.0,0.00013161,2]
[348993369,1736925045099,-500.0,0.00013161,2]
[348993370,1736925045110,-500.0,0.00013161,2]
[348993371,1736925045120,-500.0,0.00013161,2]
[348993372,1736925045130,-598.19315747,0.00013161,2]
[348993373,1736925045140,-500.0,0.00013161,2]
[348993374,1736925045151,-500.0,0.00013161,2]
[348993375,1736925045160,-221.35438593,0.00013161,2]
[348993376,1736925045171,-500.0,0.00013161,2]
[348993377,1736925045181,-501.17288416,0.00013161,2]
[348993378,1736925045191,-500.0,0.00013161,2]
[348993379,1736925045201,-500.0,0.00013161,2]
[348993380,1736925045212,-500.0,0.00013161,2]
[348993381,1736925045223,-500.0,0.00013161,2]
[348993382,1736925045234,-504.55102955,0.00013161,2]
[348993383,1736925045244,-500.0,0.00013161,2]
[348993384,1736925045255,-500.0,0.00013161,2]
[348993385,1736925045265,-500.0,0.00013161,2]
[348993386,1736925045275,-500.0,0.00013161,2]
[348993387,1736925045287,-500.0,0.00013161,2]
[348993388,1736925045297,-500.0,0.00013161,2]
[348993389,1736925045308,-500.0,0.00013161,2]
[348993390,1736925045318,-502.91779113,0.00013161,2]
[348993391,1736925045328,-500.0,0.00013161,2]
[348993392,1736925045339,-501.4395182,0.00013161,2]
[348993393,1736925045350,-504.0589438,0.00013161,2]
[348993394,1736925045360,-500.0,0.00013161,2]
[348993395,1736925045371,-500.0,0.00013161,2]
[348993396,1736925045381,-500.0,0.00013161,2]
[348993397,1736925045391,-500.0,0.00013161,2]
[348993398,1736925045402,-500.0,0.00013161,2]
[348993399,1736925045413,-500.0,0.00013161,2]
[348993400,1736925045423,-500.0,0.00013161,2]
[348993401,1736925045433,-500.0,0.00013161,2]
[348993402,1736925045443,-500.0,0.00013161,2]
[348993403,1736925045453,-500.0,0.00013161,2]
[348993404,1736925045464,-500.0,0.00013161,2]
[348993405,1736925045474,-500.0,0.00013161,2]
[348993406,1736925045484,-452.77679781,0.00013161,2]
[348993407,1736925045495,-500.0,0.00013161,2]
[348993408,1736925045505,-500.0,0.00013161,2]
[348993409,1736925045515,-500.0,0.00013161,2]
[348993410,1736925045525,-500.0,0.00013161,2]
[348993411,1736925045535,-228.11597967,0.00013161,2]
[348993412,1736925045545,-500.0,0.00013161,2]
[348993413,1736925045555,-500.0,0.00013161,2]
[348993414,1736925045568,-504.01781334,0.00013161,2]
[348993415,1736925045578,-500.0,0.00013161,2]
[348993416,1736925045589,-500.0,0.00013161,2]
[348993417,1736925045599,-501.73607162,0.00013161,2]
[348993418,1736925045610,-503.67419616,0.00013161,2]
[348993419,1736925045621,-500.0,0.00013161,2]
[348993420,1736925045631,-533.26923189,0.00013161,2]
[348993421,1736925045641,-500.0,0.00013161,2]
[348993422,1736925045651,-501.15522701,0.00013161,2]
[348993423,1736925045661,-503.31675182,0.00013161,2]
[348993429,1736925045917,-500.0,0.00013161,2]
[348993432,1736925045934,-500.0,0.00013161,2]
[348993433,1736925045945,-684.28922606,0.00013161,2]
[348993434,1736925045956,-500.0,0.00013161,2]
[348993435,1736925045967,-500.0,0.00013161,2]
[348993436,1736925045978,-500.0,0.00013161,2]
[348993437,1736925045987,-500.0,0.00013161,2]
[348993438,1736925045996,-504.57558297,0.00013161,2]
[348993439,1736925046005,-501.6916105,0.00013161,2]
[348993440,1736925046015,-500.0,0.00013161,2]
[348993441,1736925046025,-500.0,0.00013161,2]
[348993442,1736925046036,-501.93955322,0.00013161,2]
[348993443,1736925046047,-500.0,0.00013161,2]
[348993444,1736925046056,-503.57052323,0.00013161,2]
[348993445,1736925046066,-503.65442409,0.00013161,2]
[348993446,1736925046076,-233.84639441,0.00013161,2]
[348993447,1736925046085,-500.0,0.00013161,2]
[348993448,1736925046094,-145.02108765,0.00013161,2]
[348993449,1736925046108,-354.97891235,0.00013161,2]
[348993450,1736925046117,-500.0,0.00013161,2]
[348993451,1736925046127,-500.0,0.00013161,2]
[348993452,1736925046136,-503.73528892,0.00013161,2]
[348993453,1736925046145,-500.0,0.00013161,2]
[348993454,1736925046154,-505.79792094,0.00013161,2]
[348993455,1736925046163,-566.21,0.00013161,2]
[348993456,1736925046171,-500.0,0.00013161,2]
[348993457,1736925046181,-503.24145485,0.00013161,2]
[348993458,1736925046190,-500.0,0.00013161,2]
[348993459,1736925046200,-482.01153593,0.00013161,2]
[348993460,1736925046211,-17.98846407,0.00013161,2]
[348993461,1736925046222,-500.0,0.00013161,2]
[348993462,1736925046233,-504.07375405,0.00013161,2]
[348993463,1736925046243,-500.0,0.00013161,2]
[348993464,1736925046254,-500.0,0.00013161,2]
[348993465,1736925046263,-500.0,0.00013161,2]
[348993466,1736925046273,-502.75139085,0.00013161,2]
[348993467,1736925046283,-500.0,0.00013161,2]
[348993468,1736925046295,-510.37372081,0.00013161,2]
[348993469,1736925046305,-506.26189968,0.00013161,2]
[348993470,1736925046315,-502.84024744,0.00013161,2]
[348993471,1736925046326,-500.0,0.00013161,2]
[348993472,1736925046335,-500.0,0.00013161,2]
[348993473,1736925046345,-501.04194486,0.00013161,2]
[348993474,1736925046354,-504.43883585,0.00013161,2]
[348993475,1736925046364,-500.0,0.00013161,2]
[348993476,1736925046374,-500.0,0.00013161,2]
[348993477,1736925046383,-506.2553554,0.00013161,2]
[348993478,1736925046394,-500.0,0.00013161,2]
[348993479,1736925046403,-501.48471784,0.00013161,2]
[348993480,1736925046414,-503.34847692,0.00013161,2]
[348993481,1736925046426,-500.0,0.00013161,2]
[348993483,1736925046435,-500.0,0.00013161,2]
[348993485,1736925046444,-500.0,0.00013161,2]
[348993487,1736925046453,-500.0,0.00013161,2]
[348993489,1736925046463,-500.0,0.00013161,2]
[348993491,1736925046473,-506.31459849,0.00013161,2]
[348993493,1736925046483,-501.62509503,0.00013161,2]
[348993495,1736925046492,-500.0,0.00013161,2]
[348993497,1736925046502,-502.61522346,0.00013161,2]
[348993499,1736925046511,-509.59013913,0.00013161,2]
[348993501,1736925046520,-410.99613612,0.00013161,2]
[348993503,1736925046533,-89.4260469,0.00013161,2]
[348993504,1736925046542,-509.89847375,0.00013161,2]
[348993505,1736925046553,-507.75124703,0.00013161,2]
[348993506,1736925046562,-500.0,0.00013161,2]
[348993507,1736925046572,-507.99732262,0.00013161,2]
[348993508,1736925046581,-462.2365938,0.00013161,2]
[348993509,1736925046596,-45.81965892,0.00013161,2]
[348993510,1736925046606,-500.0,0.00013161,2]
[348993511,1736925046615,-500.0,0.00013161,2]
[348993512,1736925046625,-502.19778368,0.00013161,2]
[348993513,1736925046634,-500.0,0.00013161,2]
[348993514,1736925046643,-503.21137808,0.00013161,2]
[348993515,1736925046653,-500.0,0.00013161,2]
[348993516,1736925046663,-500.0,0.00013161,2]
[348993517,1736925046672,-300.65185571,0.00013161,2]
[348993518,1736925046683,-199.34814429,0.00013161,2]
[348993519,1736925046693,-500.0,0.00013286,2]
[348993520,1736925046702,-170.30473415,0.00013329,2]
[348993521,1736925046711,-420.0,0.00013336,2]
[348993522,1736925046720,-262.734758,0.00013428,2]
[348993523,1736925046729,-231.861882,0.00013428,2]
[348993524,1736925046739,-500.0,0.00013428,2]
[348993525,1736925046748,-315.19547656,0.00013428,2]
[348993526,1736925046758,-297.99452344,0.00013428,2]
[348993527,1736925046768,-24.61842714,0.00013428,2]
[348993528,1736925046870,-519.4545073,0.0001316,2]
[348993529,1736925046880,-537.00157286,0.00013428,2]
[348993530,1736925046890,-500.0,0.00013428,2]
[348993531,1736925046900,-500.0,0.00013428,2]
[348993532,1736925046909,-500.0,0.00013428,2]
[348993533,1736925046920,-500.0,0.00013428,2]
[348993534,1736925046934,-500.0,0.00013428,2]
[348993535,1736925046944,-500.0,0.00013428,2]
[348993536,1736925046954,-500.0,0.00013428,2]
[348993537,1736925046965,-500.0,0.00013428,2]
[348993538,1736925046977,-500.0,0.00013428,2]
[348993539,1736925046985,-500.0,0.00013428,2]
[348993540,1736925046994,-500.0,0.00013428,2]
[348993541,1736925047004,-500.0,0.00013428,2]
[348993542,1736925047013,-500.0,0.00013428,2]
[348993543,1736925047023,-500.0,0.00013428,2]
[348993544,1736925047033,-500.0,0.00013428,2]
[348993545,1736925047042,-274.01847068,0.00013428,2]
[348993546,1736925047051,-500.0,0.00013428,2]
[348993547,1736925047060,-500.0,0.00013428,2]
[348993548,1736925047071,-500.0,0.00013428,2]
[348993549,1736925047080,-500.0,0.00013428,2]
[348993550,1736925047090,-500.0,0.00013428,2]
[348993551,1736925047099,-500.0,0.00013428,2]
[348993552,1736925047109,-514.4883505,0.00013428,2]
[348993553,1736925047119,-500.0,0.00013428,2]
[348993554,1736925047128,-500.0,0.00013428,2]
[348993555,1736925047137,-500.0,0.00013428,2]
[348993556,1736925047146,-500.0,0.00013428,2]
[348993557,1736925047156,-500.0,0.00013428,2]
[348993558,1736925047164,-500.0,0.00013428,2]
[348993559,1736925047173,-500.0,0.00013428,2]
[348993560,1736925047183,-500.0,0.00013428,2]
[348993561,1736925047192,-500.0,0.00013428,2]
[348993562,1736925047201,-500.0,0.00013428,2]
[348993563,1736925047210,-500.0,0.00013428,2]
[348993564,1736925047219,-500.0,0.00013428,2]
[348993565,1736925047228,-500.0,0.00013428,2]
[348993566,1736925047238,-410.05943165,0.00013429,2]
[348993567,1736925047248,-282.33083286,0.00013429,2]
[348993568,1736925047258,-500.0,0.00013429,2]
[348993569,1736925047267,-500.0,0.00013429,2]
[348993570,1736925047276,-552.25887005,0.00013429,2]
[348993571,1736925047286,-500.0,0.00013429,2]
[348993572,1736925047297,-500.0,0.00013429,2]
[348993573,1736925047307,-500.0,0.00013429,2]
[348993574,1736925047316,-500.0,0.00013429,2]
[348993575,1736925047327,-500.0,0.00013429,2]
[348993576,1736925047336,-500.0,0.00013429,2]
[348993577,1736925047346,-500.0,0.00013429,2]
[348993578,1736925047355,-500.0,0.00013429,2]
[348993579,1736925047364,-500.0,0.00013429,2]
[348993580,1736925047373,-365.97,0.00013429,2]
[348993581,1736925047382,-500.0,0.00013429,2]
[348993582,1736925047391,-500.0,0.00013429,2]
[348993583,1736925047400,-500.0,0.00013429,2]
[348993584,1736925047410,-500.0,0.00013429,2]
[348993585,1736925047419,-500.0,0.00013429,2]
[348993586,1736925047429,-500.0,0.00013429,2]
[348993587,1736925047438,-500.0,0.00013429,2]
[348993588,1736925047447,-500.0,0.00013429,2]
[348993589,1736925047457,-500.0,0.00013429,2]
[348993590,1736925047466,-500.0,0.00013429,2]
[348993591,1736925047476,-438.65,0.00013429,2]
[348993592,1736925047486,-155.44,0.00013429,2]
[348993593,1736925047496,-500.0,0.00013429,2]
[348993594,1736925047505,-500.0,0.00013429,2]
[348993595,1736925047515,-500.0,0.00013429,2]
[348993596,1736925047526,-500.0,0.00013429,2]
[348993597,1736925047536,-500.0,0.00013429,2]
[348993598,1736925047545,-500.0,0.00013429,2]
[348993599,1736925047554,-500.0,0.00013429,2]
[348993600,1736925047565,-500.0,0.00013429,2]
[348993601,1736925047575,-500.0,0.00013434,2]
[348993602,1736925047585,-500.0,0.00013434,2]
[348993603,1736925047595,-518.72,0.00013434,2]
[348993604,1736925047605,-495.6079641,0.00013434,2]
[348993605,1736925047619,-4.3920359,0.00013434,2]
[348993606,1736925047629,-500.0,0.00013435,2]
[348993607,1736925047638,-645.83333476,0.00013435,2]
[348993608,1736925047648,-189.74836855,0.00013435,2]
[348993609,1736925047658,-501.17025106,0.00013435,2]
[348993610,1736925047668,-513.95,0.00013435,2]
[348993611,1736925047678,-506.37398102,0.00013435,2]
[348993612,1736925047687,-504.38189766,0.00013435,2]
[348993613,1736925047697,-615.77410835,0.00013435,2]
[348993614,1736925047706,-500.0,0.00013435,2]
[348993615,1736925047715,-500.0,0.00013435,2]
[348993616,1736925047724,-646.26,0.00013435,2]
[348993617,1736925047734,-500.0,0.00013435,2]
[348993618,1736925047744,-500.0,0.00013435,2]
[348993619,1736925047754,-573.4,0.00013435,2]
[348993620,1736925047763,-500.0,0.00013435,2]
[348993621,1736925047773,-500.0,0.00013435,2]
[348993622,1736925047782,-500.0,0.00013435,2]
[348993623,1736925047791,-500.0,0.00013435,2]
[348993624,1736925047801,-500.0,0.00013435,2]
[348993625,1736925047810,-500.0,0.00013435,2]
[348993626,1736925047820,-366.02931143,0.00013435,2]
[348993627,1736925047830,-500.0,0.00013435,2]
[348993628,1736925047839,-500.0,0.00013435,2]
[348993629,1736925047849,-566.21,0.00013435,2]
[348993630,1736925047858,-500.0,0.00013435,2]
[348993631,1736925047868,-500.0,0.00013435,2]
[348993632,1736925047878,-500.0,0.00013435,2]
[348993633,1736925047888,-500.0,0.00013435,2]
[348993634,1736925047897,-500.0,0.00013435,2]
[348993635,1736925047907,-552.36520886,0.00013435,2]
[348993636,1736925047917,-512.62874647,0.00013435,2]
[348993637,1736925047928,-500.0,0.00013435,2]
[348993638,1736925047939,-500.0,0.00013435,2]
[348993639,1736925047949,-500.0,0.00013435,2]
[348993640,1736925047959,-500.0,0.00013435,2]
[348993641,1736925047968,-500.0,0.00013435,2]
[348993642,1736925047978,-500.0,0.00013435,2]
[348993643,1736925047988,-500.0,0.00013435,2]
[348993644,1736925047998,-500.0,0.00013435,2]
[348993645,1736925048007,-500.0,0.00013435,2]
[348993646,1736925048017,-500.0,0.00013435,2]
[348993647,1736925048027,-5003.0,0.000135,3]
[348993648,1736925048037,-500.0,0.0001356,2]
[348993649,1736925048047,-643.0,0.000136,2]
[348993650,1736925048057,-500.0,0.00013699,2]
[348993651,1736925048067,-200.0,0.00013699,2]
[348993652,1736925048077,-360.2,0.000137,2]
[348993653,1736925048087,-360.2,0.000137,2]
[348993654,1736925048097,-262.734758,0.00013702,2]
[348993655,1736925048106,-231.861882,0.00013702,2]
[348993656,1736925048116,-500.0,0.00013702,2]
[348993657,1736925048126,-167.284272,0.00013702,2]
[348993658,1736925048136,-500.0,0.00013702,2]
[348993659,1736925048146,-362.57,0.00013702,2]
[348993660,1736925048156,-500.0,0.00013702,2]
[348993661,1736925048165,-500.0,0.00013702,2]
[348993662,1736925048175,-500.0,0.00013702,2]
[348993663,1736925048185,-500.0,0.00013702,2]
[348993664,1736925048195,-500.0,0.00013702,2]
[348993665,1736925048205,-427.79,0.00013702,2]
[348993666,1736925048215,-500.0,0.00013702,2]
[348993667,1736925048225,-500.0,0.00013702,2]
[348993668,1736925048235,-500.0,0.00013702,2]
[348993669,1736925048245,-500.0,0.00013702,2]
[348993670,1736925048255,-298.67,0.00013702,2]
[348993671,1736925048264,-500.0,0.00013702,2]
[348993672,1736925048274,-500.0,0.00013702,2]
[348993673,1736925048283,-530.4894206,0.00013702,2]
[348993674,1736925048293,-500.0,0.00013702,2]
[348993675,1736925048303,-500.0,0.00013702,2]
[348993676,1736925048313,-626.19,0.00013702,2]
[348993677,1736925048323,-500.0,0.00013702,2]
[348993678,1736925048333,-500.0,0.00013702,2]
[348993679,1736925048343,-500.0,0.00013702,2]
[348993680,1736925048353,-500.0,0.00013702,2]
[348993681,1736925048365,-500.0,0.00013702,2]
[348993682,1736925048374,-500.0,0.00013702,2]
[348993683,1736925048384,-500.0,0.00013702,2]
[348993684,1736925048394,-500.0,0.00013702,2]
[348993685,1736925048403,-525.55620321,0.00013702,2]
[348993686,1736925048413,-500.0,0.00013703,2]
[348993687,1736925048423,-500.0,0.00013703,2]
[348993688,1736925048433,-609.33,0.00013703,2]
[348993689,1736925048443,-500.0,0.00013703,2]
[348993690,1736925048454,-574.65,0.00013703,2]
[348993691,1736925048464,-612.19,0.00013703,2]
[348993692,1736925048473,-500.0,0.00013703,2]
[348993693,1736925048482,-500.0,0.00013703,2]
[348993694,1736925048491,-500.0,0.00013703,2]
[348993695,1736925048501,-500.0,0.00013703,2]
[348993696,1736925048511,-500.0,0.00013703,2]
[348993697,1736925048521,-500.0,0.00013703,2]
[348993698,1736925048531,-500.0,0.00013703,2]
[348993699,1736925048541,-280.53,0.00013703,2]
[348993700,1736925048551,-500.0,0.00013703,2]
[348993701,1736925048561,-500.0,0.00013703,2]
[348993702,1736925048572,-500.0,0.00013703,2]
[348993703,1736925048582,-500.0,0.00013703,2]
[348993704,1736925048592,-500.0,0.00013709,2]
[348993705,1736925048601,-500.0,0.00013709,2]
[348993706,1736925048612,-500.0,0.00013709,2]
[348993707,1736925048622,-566.21,0.00013709,2]
[348993708,1736925048631,-500.0,0.00013709,2]
[348993709,1736925048641,-615.77,0.00013709,2]
[348993710,1736925048652,-500.0,0.00013709,2]
[348993711,1736925048662,-500.0,0.00013709,2]
[348993712,1736925048672,-500.0,0.00013709,2]
[348993713,1736925048682,-500.0,0.00013709,2]
[348993714,1736925048692,-500.0,0.00013834,2]
[348993715,1736925048702,-500.0,0.00013852,2]
[348993716,1736925048712,-212.88682162,0.000139,2]
[348993717,1736925048722,-360.25,0.00013904,2]
[348993718,1736925048731,-360.25,0.00013908,2]
[348993719,1736925048742,-360.25,0.00013911,2]
[348993720,1736925048752,-360.25,0.00013915,2]
[348993721,1736925048762,-360.25,0.00013919,2]
[348993722,1736925048771,-360.25,0.00013922,2]
[348993723,1736925048780,-360.25,0.00013926,2]
[348993724,1736925048790,-360.25,0.0001393,2]
[348993725,1736925048799,-360.25,0.00013934,2]
[348993726,1736925048810,-360.25,0.00013937,2]
[348993727,1736925048819,-360.25,0.00013941,2]
[348993728,1736925048829,-360.25,0.00013945,2]
[348993729,1736925048838,-360.25,0.00013948,2]
[348993730,1736925048847,-360.25,0.00013952,2]
[348993731,1736925048857,-360.25,0.00013956,2]
[348993732,1736925048866,-360.25,0.00013959,2]
[348993733,1736925048875,-360.25,0.00013963,2]
[348993734,1736925048884,-360.25,0.00013967,2]
[348993735,1736925048894,-360.25,0.0001397,2]
[348993736,1736925048904,-360.25,0.00013974,2]
[348993737,1736925048914,-262.734758,0.00013976,2]
[348993738,1736925048924,-231.861882,0.00013976,2]
[348993739,1736925048939,-500.0,0.00013976,2]
[348993740,1736925048949,-167.284272,0.00013976,2]
[348993741,1736925048959,-500.0,0.00013976,2]
[348993742,1736925049116,-500.0,0.00013976,2]
[348993743,1736925049127,-500.0,0.00013976,2]
[348993744,1736925049137,-500.0,0.00013976,2]
[348993745,1736925049148,-500.0,0.00013976,2]